[Event "Titled Tuesday Blitz May 23 Early 2023"]
[White "Yanayt, Eugene"]
[Black "Singgih, Diajeng Theresa"]
[WhiteFideId "2020165"]
[BlackFideId "7104391"]
[WhiteElo "2083"]
[BlackElo "1891"]
[Result "0-1"]
[Round "11"]
[TimeControl "180+2"]
[Date "2023.05.23"]
[WhiteClock "0:00:00"]
[BlackClock "0:00:06"]

1. Nf3 {[%clk 0:02:51]}  d5 {[%clk 0:02:59]} 2. d4 {[%clk 0:02:50]}  Nf6 {[%clk 0:02:59]} 3. c4 {[%clk 0:02:50]}  e6 {[%clk 0:02:58]} 4. g3 {[%clk 0:02:50]}  Bb4+ {[%clk 0:02:57]} 5. Nc3 {[%clk 0:02:49]}  O-O {[%clk 0:02:56]} 6. Bg2 {[%clk 0:02:48]}  b6 {[%clk 0:02:56]} 7. O-O {[%clk 0:02:47]}  Bb7 {[%clk 0:02:55]} 8. Ne5 {[%clk 0:02:45]}  Nbd7 {[%clk 0:02:48]} 9. Nd3 {[%clk 0:02:45]}  Bxc3 {[%clk 0:02:43]} 10. bxc3 {[%clk 0:02:44]}  Rb8 {[%clk 0:02:43]} 11. cxd5 {[%clk 0:02:42]}  Nxd5 {[%clk 0:02:42]} 12. Qc2 {[%clk 0:02:40]}  N7f6 {[%clk 0:02:40]} 13. e4 {[%clk 0:02:36]}  Ne7 {[%clk 0:02:38]} 14. Ne5 {[%clk 0:02:23]}  c5 {[%clk 0:02:34]} 15. Be3 {[%clk 0:02:18]}  cxd4 {[%clk 0:02:29]} 16. cxd4 {[%clk 0:02:18]}  Rc8 {[%clk 0:02:28]} 17. Qb1 {[%clk 0:02:09]}  Nc6 {[%clk 0:02:22]} 18. Nf3 {[%clk 0:02:03]}  Na5 {[%clk 0:02:10]} 19. Ne5 {[%clk 0:01:59]}  Nc4 {[%clk 0:02:07]} 20. Nxc4 {[%clk 0:01:59]}  Rxc4 {[%clk 0:02:07]} 21. Rd1 {[%clk 0:01:56]}  Qa8 {[%clk 0:02:03]} 22. f3 {[%clk 0:01:54]}  Rfc8 {[%clk 0:02:01]} 23. Bf2 {[%clk 0:01:45]}  Rc2 {[%clk 0:01:57]} 24. Qb3 {[%clk 0:01:33]}  Ba6 {[%clk 0:01:54]} 25. g4 {[%clk 0:01:25]}  Qc6 {[%clk 0:01:50]} 26. h4 {[%clk 0:01:14]}  Bb5 {[%clk 0:01:40]} 27. a4 {[%clk 0:01:12]}  Be2 {[%clk 0:01:39]} 28. Re1 {[%clk 0:01:09]}  Qb7 {[%clk 0:01:12]} 29. Qe3 {[%clk 0:01:01]}  R8c3 {[%clk 0:01:08]} 30. Qf4 {[%clk 0:01:01]}  Ba6 {[%clk 0:01:03]} 31. h5 {[%clk 0:00:59]}  h6 {[%clk 0:01:02]} 32. Bh4 {[%clk 0:00:54]}  Nd7 {[%clk 0:00:55]} 33. Kh1 {[%clk 0:00:52]}  Qc6 {[%clk 0:00:51]} 34. d5 {[%clk 0:00:44]}  Qc4 {[%clk 0:00:43]} 35. Bf1 {[%clk 0:00:33]}  Qb3 {[%clk 0:00:35]} 36. Rab1 {[%clk 0:00:22]}  Qa3 {[%clk 0:00:28]} 37. Ra1 {[%clk 0:00:22]}  Qb3 {[%clk 0:00:19]} 38. Reb1 {[%clk 0:00:22]}  Rb2 {[%clk 0:00:16]} 39. Rxb2 {[%clk 0:00:22]}  Qxb2 {[%clk 0:00:16]} 40. Re1 {[%clk 0:00:20]}  Bxf1 {[%clk 0:00:12]} 41. Rxf1 {[%clk 0:00:19]}  e5 {[%clk 0:00:12]} 42. Qf5 {[%clk 0:00:19]}  Nc5 {[%clk 0:00:09]} 43. Qc8+ {[%clk 0:00:18]}  Kh7 {[%clk 0:00:09]} 44. Qf5+ {[%clk 0:00:19]}  Kg8 {[%clk 0:00:09]} 45. Qc8+ {[%clk 0:00:19]}  Kh7 {[%clk 0:00:10]} 46. g5 {[%clk 0:00:20]}  hxg5 {[%clk 0:00:07]} 47. Bxg5 {[%clk 0:00:20]}  Ne6 {[%clk 0:00:06]} 48. Qd7 {[%clk 0:00:16]}  Nxg5 {[%clk 0:00:06]} 49. Qf5+ {[%clk 0:00:16]}  Kh6 {[%clk 0:00:06]} 50. Rg1 {[%clk 0:00:15]}  Qd2 {[%clk 0:00:05]} 51. d6 {[%clk 0:00:10]}  Rc2 {[%clk 0:00:05]} 52. Qxe5 {[%clk 0:00:08]}  f6 {[%clk 0:00:03]} 53. Qg3 {[%clk 0:00:06]}  Qd3 {[%clk 0:00:01]} 54. d7 {[%clk 0:00:04]}  Rd2 {[%clk 0:00:01]} 55. f4 {[%clk 0:00:04]}  Qxd7 {[%clk 0:00:01]} 56. fxg5+ {[%clk 0:00:04]}  Kh7 {[%clk 0:00:01]} 57. gxf6 {[%clk 0:00:03]}  Kh8 {[%clk 0:00:02]} 58. f7 {[%clk 0:00:02]}  Qxf7 {[%clk 0:00:02]} 59. Qb8+ {[%clk 0:00:02]}  Kh7 {[%clk 0:00:01]} 60. Qg3 {[%clk 0:00:03]}  Kh8 {[%clk 0:00:01]} 61. Qh4 {[%clk 0:00:03]}  Kh7 {[%clk 0:00:02]} 62. Qh3 {[%clk 0:00:03]}  Kh8 {[%clk 0:00:02]} 63. e5 {[%clk 0:00:04]}  Kh7 {[%clk 0:00:03]} 64. e6 {[%clk 0:00:04]}  Qb7+ {[%clk 0:00:03]} 65. Rg2 {[%clk 0:00:04]}  Rd1+ {[%clk 0:00:03]} 66. Kh2 {[%clk 0:00:03]}  Qc7+ {[%clk 0:00:04]} 67. Qg3 {[%clk 0:00:03]}  Qxg3+ {[%clk 0:00:04]} 68. Kxg3 {[%clk 0:00:03]}  Re1 {[%clk 0:00:05]} 69. Rc2 {[%clk 0:00:03]}  Rxe6 {[%clk 0:00:05]} 70. Rc7 {[%clk 0:00:04]}  a5 {[%clk 0:00:05]} 71. Rb7 {[%clk 0:00:04]}  Kh6 {[%clk 0:00:06]} 72. Kg4 {[%clk 0:00:04]}  Re4+ {[%clk 0:00:06]} 73. Kf5 {[%clk 0:00:04]}  Rxa4 {[%clk 0:00:06]} 74. Rxb6+ {[%clk 0:00:04]}  Kxh5 {[%clk 0:00:07]} 75. Rb8 {[%clk 0:00:05]}  g6+ {[%clk 0:00:06]} 76. Kf6 {[%clk 0:00:05]}  Rf4+ {[%clk 0:00:07]} 77. Ke5 {[%clk 0:00:05]}  Rf1 {[%clk 0:00:07]} 78. Rb5 {[%clk 0:00:00]}  Rf5+ {[%clk 0:00:06]} 0-1


[Site "https://www.chess.com"]

[Event "Titled Tuesday Blitz May 23 Early 2023"]
[White "James, Stuart"]
[Black "Gatterer, Florian"]
[WhiteFideId "7400489"]
[BlackFideId "811688"]
[WhiteElo "1950"]
[BlackElo "2221"]
[Result "0-1"]
[Round "11"]
[TimeControl "180+2"]
[Date "2023.05.23"]
[WhiteClock "0:00:25"]
[BlackClock "0:00:22"]

1. e4 {[%clk 0:03:00]}  d5 {[%clk 0:02:59]} 2. exd5 {[%clk 0:03:00]}  Qxd5 {[%clk 0:03:00]} 3. Nc3 {[%clk 0:03:00]}  Qd8 {[%clk 0:03:01]} 4. Nf3 {[%clk 0:03:00]}  Nf6 {[%clk 0:03:01]} 5. Be2 {[%clk 0:02:59]}  Bg4 {[%clk 0:03:01]} 6. h3 {[%clk 0:02:59]}  Bh5 {[%clk 0:02:25]} 7. d4 {[%clk 0:02:57]}  e6 {[%clk 0:02:25]} 8. Bg5 {[%clk 0:02:45]}  Be7 {[%clk 0:02:23]} 9. Qd2 {[%clk 0:02:41]}  c6 {[%clk 0:02:22]} 10. O-O-O {[%clk 0:02:40]}  Nbd7 {[%clk 0:02:18]} 11. g4 {[%clk 0:02:37]}  Bg6 {[%clk 0:02:18]} 12. Qe3 {[%clk 0:02:22]}  Bb4 {[%clk 0:02:09]} 13. Ne5 {[%clk 0:02:19]}  Bxc3 {[%clk 0:01:31]} 14. Qxc3 {[%clk 0:01:58]}  Nd5 {[%clk 0:01:30]} 15. Bxd8 {[%clk 0:01:57]}  Nxc3 {[%clk 0:01:30]} 16. bxc3 {[%clk 0:01:52]}  Rxd8 {[%clk 0:01:08]} 17. Nxg6 {[%clk 0:01:42]}  hxg6 {[%clk 0:01:08]} 18. f4 {[%clk 0:01:39]}  Ke7 {[%clk 0:01:07]} 19. Bf3 {[%clk 0:01:36]}  Nb6 {[%clk 0:01:02]} 20. Bg2 {[%clk 0:01:19]}  Nd5 {[%clk 0:00:54]} 21. Bxd5 {[%clk 0:01:11]}  cxd5 {[%clk 0:00:54]} 22. Kd2 {[%clk 0:01:06]}  Rh4 {[%clk 0:00:48]} 23. Ke2 {[%clk 0:01:04]}  Rdh8 {[%clk 0:00:47]} 24. Rb1 {[%clk 0:00:58]}  b6 {[%clk 0:00:47]} 25. Rb3 {[%clk 0:00:52]}  Rxh3 {[%clk 0:00:45]} 26. Rxh3 {[%clk 0:00:50]}  Rxh3 {[%clk 0:00:45]} 27. Ra3 {[%clk 0:00:51]}  Rh2+ {[%clk 0:00:32]} 28. Kd3 {[%clk 0:00:45]}  a5 {[%clk 0:00:29]} 29. Rb3 {[%clk 0:00:45]}  Rf2 {[%clk 0:00:27]} 30. Rxb6 {[%clk 0:00:39]}  Rxf4 {[%clk 0:00:27]} 31. Ra6 {[%clk 0:00:37]}  Rxg4 {[%clk 0:00:25]} 32. Rxa5 {[%clk 0:00:38]}  Rg1 {[%clk 0:00:25]} 33. Ra7+ {[%clk 0:00:37]}  Kf6 {[%clk 0:00:24]} 34. c4 {[%clk 0:00:25]}  Rg3+ {[%clk 0:00:22]} 0-1


[Site "https://www.chess.com"]

[Event "Titled Tuesday Blitz May 23 Early 2023"]
[White "Georg, Heinz"]
[Black "agvania123"]
[WhiteFideId "4607295"]
[WhiteElo "2304"]
[BlackElo "2237"]
[Result "0-1"]
[Round "11"]
[TimeControl "180+2"]
[Date "2023.05.23"]
[WhiteClock "0:00:58"]
[BlackClock "0:00:37"]

1. e4 {[%clk 0:03:00]}  d5 {[%clk 0:03:00]} 2. exd5 {[%clk 0:03:00]}  Qxd5 {[%clk 0:03:01]} 3. c4 {[%clk 0:03:00]}  Qd8 {[%clk 0:02:59]} 4. d4 {[%clk 0:02:59]}  Nf6 {[%clk 0:03:00]} 5. Nc3 {[%clk 0:03:00]}  g6 {[%clk 0:02:59]} 6. Nf3 {[%clk 0:02:56]}  Bg7 {[%clk 0:02:59]} 7. Bd3 {[%clk 0:02:55]}  O-O {[%clk 0:02:59]} 8. O-O {[%clk 0:02:54]}  Bg4 {[%clk 0:03:00]} 9. Be3 {[%clk 0:02:54]}  c6 {[%clk 0:02:58]} 10. h3 {[%clk 0:02:52]}  Bxf3 {[%clk 0:02:58]} 11. Qxf3 {[%clk 0:02:53]}  e6 {[%clk 0:02:59]} 12. Rfd1 {[%clk 0:02:49]}  Nbd7 {[%clk 0:02:57]} 13. b3 {[%clk 0:02:29]}  Qe7 {[%clk 0:02:34]} 14. Rd2 {[%clk 0:02:05]}  Rfd8 {[%clk 0:02:31]} 15. Rad1 {[%clk 0:02:04]}  a5 {[%clk 0:01:57]} 16. Bc2 {[%clk 0:01:56]}  Qb4 {[%clk 0:01:35]} 17. Ne2 {[%clk 0:01:48]}  a4 {[%clk 0:01:28]} 18. Bg5 {[%clk 0:01:42]}  axb3 {[%clk 0:01:26]} 19. axb3 {[%clk 0:01:42]}  h6 {[%clk 0:01:26]} 20. Bh4 {[%clk 0:01:39]}  Re8 {[%clk 0:01:11]} 21. Bxf6 {[%clk 0:01:23]}  Nxf6 {[%clk 0:01:09]} 22. Nf4 {[%clk 0:01:20]}  Red8 {[%clk 0:01:06]} 23. Qg3 {[%clk 0:01:14]}  g5 {[%clk 0:01:03]} 24. Nd3 {[%clk 0:01:11]}  Qd6 {[%clk 0:01:03]} 25. Ne5 {[%clk 0:01:11]}  Nd7 {[%clk 0:00:50]} 26. Qd3 {[%clk 0:01:08]}  Nxe5 {[%clk 0:00:41]} 27. Qh7+ {[%clk 0:01:08]}  Kf8 {[%clk 0:00:41]} 28. dxe5 {[%clk 0:01:07]}  Qxd2 {[%clk 0:00:42]} 29. Rxd2 {[%clk 0:01:06]}  Rxd2 {[%clk 0:00:43]} 30. Be4 {[%clk 0:01:00]}  Ra1+ {[%clk 0:00:42]} 31. Kh2 {[%clk 0:01:00]}  Bxe5+ {[%clk 0:00:42]} 32. g3 {[%clk 0:00:59]}  Rxf2+ {[%clk 0:00:43]} 33. Bg2 {[%clk 0:00:59]}  Raa2 {[%clk 0:00:40]} 34. Qxh6+ {[%clk 0:00:58]}  Bg7 {[%clk 0:00:39]} 35. Qxg5 {[%clk 0:00:58]}  Rxg2+ {[%clk 0:00:39]} 36. Kh1 {[%clk 0:00:58]}  Rh2+ {[%clk 0:00:37]} 37. Kg1 {[%clk 0:00:58]}  Bd4+ {[%clk 0:00:37]} 38. Kf1 {[%clk 0:00:58]}  Rh1# {[%clk 0:00:37]} 0-1


[Site "https://www.chess.com"]

[Event "Titled Tuesday Blitz May 23 Early 2023"]
[White "Jiganchine, Roman"]
[Black "Floresvillar Gonzalez, Luis Migu"]
[WhiteFideId "2603667"]
[BlackFideId "5100542"]
[WhiteElo "2289"]
[BlackElo "2040"]
[Result "1-0"]
[Round "11"]
[TimeControl "180+2"]
[Date "2023.05.23"]
[WhiteClock "0:00:07"]
[BlackClock "0:00:00"]

1. e4 {[%clk 0:03:00]}  e6 {[%clk 0:03:00]} 2. d4 {[%clk 0:02:36]}  d5 {[%clk 0:03:00]} 3. Nd2 {[%clk 0:02:35]}  dxe4 {[%clk 0:02:58]} 4. Nxe4 {[%clk 0:02:29]}  Nd7 {[%clk 0:02:59]} 5. Bd3 {[%clk 0:02:22]}  Ngf6 {[%clk 0:02:59]} 6. Qe2 {[%clk 0:02:17]}  Nxe4 {[%clk 0:02:54]} 7. Bxe4 {[%clk 0:02:14]}  Nf6 {[%clk 0:02:51]} 8. Nf3 {[%clk 0:02:06]}  Nxe4 {[%clk 0:02:50]} 9. Qxe4 {[%clk 0:02:07]}  Qd5 {[%clk 0:02:44]} 10. Qxd5 {[%clk 0:01:59]}  exd5 {[%clk 0:02:43]} 11. Bf4 {[%clk 0:01:59]}  c6 {[%clk 0:02:29]} 12. O-O-O {[%clk 0:01:56]}  Be7 {[%clk 0:02:26]} 13. Rde1 {[%clk 0:01:55]}  Be6 {[%clk 0:02:25]} 14. Ng5 {[%clk 0:01:55]}  Bxg5 {[%clk 0:02:24]} 15. Bxg5 {[%clk 0:01:56]}  Kd7 {[%clk 0:02:19]} 16. f3 {[%clk 0:01:55]}  f6 {[%clk 0:02:18]} 17. Bd2 {[%clk 0:01:54]}  Rae8 {[%clk 0:02:18]} 18. h4 {[%clk 0:01:54]}  h5 {[%clk 0:02:16]} 19. b3 {[%clk 0:01:50]}  b5 {[%clk 0:02:12]} 20. Bb4 {[%clk 0:01:47]}  Bf5 {[%clk 0:02:06]} 21. Bc5 {[%clk 0:01:43]}  a6 {[%clk 0:02:03]} 22. Kd2 {[%clk 0:01:42]}  Rxe1 {[%clk 0:02:02]} 23. Rxe1 {[%clk 0:01:41]}  Re8 {[%clk 0:02:02]} 24. Ra1 {[%clk 0:01:19]}  a5 {[%clk 0:01:20]} 25. a4 {[%clk 0:01:07]}  Ra8 {[%clk 0:00:58]} 26. Bb6 {[%clk 0:01:03]}  Ra6 {[%clk 0:00:54]} 27. Bc5 {[%clk 0:00:57]}  Ra8 {[%clk 0:00:54]} 28. Re1 {[%clk 0:00:47]}  Be6 {[%clk 0:00:47]} 29. Ra1 {[%clk 0:00:36]}  g6 {[%clk 0:00:37]} 30. Ke3 {[%clk 0:00:35]}  Bf5 {[%clk 0:00:34]} 31. Kd2 {[%clk 0:00:35]}  g5 {[%clk 0:00:30]} 32. Rh1 {[%clk 0:00:30]}  g4 {[%clk 0:00:28]} 33. Rf1 {[%clk 0:00:26]}  gxf3 {[%clk 0:00:24]} 34. Rxf3 {[%clk 0:00:26]}  Ke6 {[%clk 0:00:22]} 35. Re3+ {[%clk 0:00:20]}  Be4 {[%clk 0:00:21]} 36. Rg3 {[%clk 0:00:20]}  bxa4 {[%clk 0:00:16]} 37. bxa4 {[%clk 0:00:19]}  Re8 {[%clk 0:00:08]} 38. Rg7 {[%clk 0:00:16]}  Kf5 {[%clk 0:00:07]} 39. g3 {[%clk 0:00:14]}  Bf3 {[%clk 0:00:04]} 40. Re7 {[%clk 0:00:09]}  Rxe7 {[%clk 0:00:03]} 41. Bxe7 {[%clk 0:00:09]}  Ke6 {[%clk 0:00:04]} 42. Bd8 {[%clk 0:00:09]}  Kf5 {[%clk 0:00:04]} 43. Bxa5 {[%clk 0:00:09]}  Kg4 {[%clk 0:00:04]} 44. Bc7 {[%clk 0:00:08]}  f5 {[%clk 0:00:04]} 45. a5 {[%clk 0:00:08]}  f4 {[%clk 0:00:03]} 46. Bxf4 {[%clk 0:00:08]}  Be4 {[%clk 0:00:00]} 47. a6 {[%clk 0:00:07]} 1-0


[Site "https://www.chess.com"]

[Event "Titled Tuesday Blitz May 23 Early 2023"]
[White "Alhadad, Mahmoud"]
[Black "KSho99"]
[WhiteFideId "11501863"]
[WhiteElo "1955"]
[BlackElo "2168"]
[Result "0-1"]
[Round "11"]
[TimeControl "180+2"]
[Date "2023.05.23"]
[WhiteClock "0:00:00"]
[BlackClock "0:00:03"]

1. e4 {[%clk 0:03:00]}  c6 {[%clk 0:02:59]} 2. d4 {[%clk 0:02:59]}  d5 {[%clk 0:02:59]} 3. exd5 {[%clk 0:03:00]}  cxd5 {[%clk 0:03:00]} 4. Bd3 {[%clk 0:03:01]}  Nc6 {[%clk 0:03:00]} 5. c3 {[%clk 0:03:01]}  Nf6 {[%clk 0:03:01]} 6. Bf4 {[%clk 0:03:02]}  Bg4 {[%clk 0:02:56]} 7. Qb3 {[%clk 0:03:02]}  Qd7 {[%clk 0:02:52]} 8. Nd2 {[%clk 0:03:01]}  e6 {[%clk 0:02:51]} 9. Ngf3 {[%clk 0:03:02]}  Bxf3 {[%clk 0:02:51]} 10. Nxf3 {[%clk 0:03:02]}  Bd6 {[%clk 0:02:48]} 11. Bxd6 {[%clk 0:03:01]}  Qxd6 {[%clk 0:02:49]} 12. O-O {[%clk 0:03:02]}  O-O {[%clk 0:02:47]} 13. Rae1 {[%clk 0:03:02]}  b5 {[%clk 0:02:36]} 14. Ne5 {[%clk 0:02:47]}  Rab8 {[%clk 0:02:24]} 15. a3 {[%clk 0:02:42]}  Ne7 {[%clk 0:02:05]} 16. f4 {[%clk 0:02:34]}  Rfc8 {[%clk 0:01:55]} 17. Rf3 {[%clk 0:02:30]}  g6 {[%clk 0:01:53]} 18. Rh3 {[%clk 0:02:26]}  a5 {[%clk 0:01:43]} 19. Bxb5 {[%clk 0:02:15]}  Ne4 {[%clk 0:01:41]} 20. a4 {[%clk 0:02:00]}  Qb6 {[%clk 0:01:08]} 21. Qd1 {[%clk 0:01:32]}  Rb7 {[%clk 0:00:59]} 22. Qg4 {[%clk 0:01:27]}  Nf5 {[%clk 0:00:54]} 23. Qf3 {[%clk 0:01:09]}  Nfd6 {[%clk 0:00:48]} 24. Bd7 {[%clk 0:00:19]}  Rcc7 {[%clk 0:00:42]} 25. Qg4 {[%clk 0:00:19]}  Rxd7 {[%clk 0:00:39]} 26. Nxd7 {[%clk 0:00:19]}  Rxd7 {[%clk 0:00:39]} 27. Qh4 {[%clk 0:00:19]}  f5 {[%clk 0:00:32]} 28. Re2 {[%clk 0:00:17]}  Qd8 {[%clk 0:00:28]} 29. Qe1 {[%clk 0:00:16]}  Rb7 {[%clk 0:00:22]} 30. Rhe3 {[%clk 0:00:10]}  Qb8 {[%clk 0:00:22]} 31. g4 {[%clk 0:00:07]}  Rxb2 {[%clk 0:00:18]} 32. Qh4 {[%clk 0:00:06]}  Rxe2 {[%clk 0:00:14]} 33. Rxe2 {[%clk 0:00:07]}  Nxc3 {[%clk 0:00:12]} 34. Rxe6 {[%clk 0:00:06]}  Nde4 {[%clk 0:00:08]} 35. Re7 {[%clk 0:00:01]}  Ne2+ {[%clk 0:00:05]} 36. Kg2 {[%clk 0:00:01]}  Nxf4+ {[%clk 0:00:05]} 37. Kf3 {[%clk 0:00:00]}  h5 {[%clk 0:00:03]} 0-1


[Site "https://www.chess.com"]

[Event "Titled Tuesday Blitz May 23 Early 2023"]
[White "Thiel, Thomas"]
[Black "stratacticos"]
[WhiteFideId "4615964"]
[WhiteElo "2227"]
[BlackElo "1904"]
[Result "1-0"]
[Round "11"]
[TimeControl "180+2"]
[Date "2023.05.23"]
[WhiteClock "0:00:09"]
[BlackClock "0:00:00"]

1. e4 {[%clk 0:03:00]}  c5 {[%clk 0:02:57]} 2. Nc3 {[%clk 0:02:58]}  Nc6 {[%clk 0:02:56]} 3. Bb5 {[%clk 0:02:57]}  Na5 {[%clk 0:02:55]} 4. Nf3 {[%clk 0:02:53]}  a6 {[%clk 0:02:55]} 5. Be2 {[%clk 0:02:51]}  b5 {[%clk 0:02:54]} 6. O-O {[%clk 0:02:50]}  Bb7 {[%clk 0:02:50]} 7. d3 {[%clk 0:02:49]}  e6 {[%clk 0:02:43]} 8. h3 {[%clk 0:02:47]}  Be7 {[%clk 0:02:43]} 9. Nh2 {[%clk 0:02:46]}  b4 {[%clk 0:02:36]} 10. Nb1 {[%clk 0:02:43]}  d5 {[%clk 0:02:30]} 11. exd5 {[%clk 0:02:37]}  Qxd5 {[%clk 0:02:27]} 12. Bf3 {[%clk 0:02:36]}  Qd7 {[%clk 0:02:27]} 13. Bxb7 {[%clk 0:02:33]}  Qxb7 {[%clk 0:02:23]} 14. Nd2 {[%clk 0:02:32]}  Nf6 {[%clk 0:02:20]} 15. Qf3 {[%clk 0:02:28]}  Qxf3 {[%clk 0:02:12]} 16. Nhxf3 {[%clk 0:02:29]}  Nc6 {[%clk 0:02:09]} 17. Nc4 {[%clk 0:02:26]}  O-O {[%clk 0:02:05]} 18. Be3 {[%clk 0:02:19]}  Nd5 {[%clk 0:02:02]} 19. Nfe5 {[%clk 0:02:13]}  Nxe5 {[%clk 0:02:00]} 20. Nxe5 {[%clk 0:02:12]}  Nxe3 {[%clk 0:02:00]} 21. fxe3 {[%clk 0:02:11]}  Rac8 {[%clk 0:01:47]} 22. Nc4 {[%clk 0:02:10]}  Bg5 {[%clk 0:01:41]} 23. g3 {[%clk 0:02:03]}  h5 {[%clk 0:01:38]} 24. Kg2 {[%clk 0:02:03]}  h4 {[%clk 0:01:29]} 25. gxh4 {[%clk 0:02:01]}  Bxh4 {[%clk 0:01:28]} 26. Rf4 {[%clk 0:02:00]}  g5 {[%clk 0:01:26]} 27. Re4 {[%clk 0:01:56]}  Rc6 {[%clk 0:01:20]} 28. Rf1 {[%clk 0:01:48]}  Kg7 {[%clk 0:01:14]} 29. Ne5 {[%clk 0:01:41]}  Rd6 {[%clk 0:01:10]} 30. Rc4 {[%clk 0:01:36]}  Rd5 {[%clk 0:01:09]} 31. Nf3 {[%clk 0:01:34]}  Rh8 {[%clk 0:01:00]} 32. e4 {[%clk 0:01:33]}  Rdd8 {[%clk 0:00:52]} 33. Rxc5 {[%clk 0:01:31]}  Rc8 {[%clk 0:00:51]} 34. Rxc8 {[%clk 0:01:25]}  Rxc8 {[%clk 0:00:50]} 35. Rc1 {[%clk 0:01:21]}  f5 {[%clk 0:00:50]} 36. exf5 {[%clk 0:01:18]}  exf5 {[%clk 0:00:50]} 37. c4 {[%clk 0:01:14]}  bxc3 {[%clk 0:00:46]} 38. Rxc3 {[%clk 0:01:12]}  Re8 {[%clk 0:00:41]} 39. Nxh4 {[%clk 0:01:07]}  gxh4 {[%clk 0:00:40]} 40. Kf3 {[%clk 0:01:04]}  Re1 {[%clk 0:00:35]} 41. d4 {[%clk 0:01:02]}  Kf6 {[%clk 0:00:35]} 42. Rc6+ {[%clk 0:00:58]}  Kg5 {[%clk 0:00:34]} 43. Rxa6 {[%clk 0:00:58]}  Rd1 {[%clk 0:00:32]} 44. Ra4 {[%clk 0:00:44]}  Rd3+ {[%clk 0:00:29]} 45. Ke2 {[%clk 0:00:41]}  Rxh3 {[%clk 0:00:28]} 46. d5 {[%clk 0:00:41]}  Rh2+ {[%clk 0:00:28]} 47. Ke3 {[%clk 0:00:37]}  Rxb2 {[%clk 0:00:27]} 48. d6 {[%clk 0:00:37]}  Rb8 {[%clk 0:00:19]} 49. Rd4 {[%clk 0:00:34]}  Rd8 {[%clk 0:00:18]} 50. d7 {[%clk 0:00:32]}  h3 {[%clk 0:00:17]} 51. Kf3 {[%clk 0:00:31]}  h2 {[%clk 0:00:10]} 52. Kg2 {[%clk 0:00:29]}  Kf6 {[%clk 0:00:07]} 53. Kxh2 {[%clk 0:00:27]}  Ke5 {[%clk 0:00:08]} 54. Rd2 {[%clk 0:00:25]}  f4 {[%clk 0:00:08]} 55. Kg2 {[%clk 0:00:23]}  Ke4 {[%clk 0:00:08]} 56. a4 {[%clk 0:00:19]}  Ke3 {[%clk 0:00:05]} 57. Rd6 {[%clk 0:00:18]}  f3+ {[%clk 0:00:04]} 58. Kf1 {[%clk 0:00:16]}  Rh8 {[%clk 0:00:03]} 59. Re6+ {[%clk 0:00:11]}  Kf4 {[%clk 0:00:00]} 60. Re8 {[%clk 0:00:09]} 1-0


[Site "https://www.chess.com"]

[Event "Titled Tuesday Blitz May 23 Early 2023"]
[White "Mirimanian, Hayk"]
[Black "Winkels, Marcel"]
[WhiteFideId "4700180"]
[BlackFideId "1003887"]
[WhiteElo "2280"]
[BlackElo "1900"]
[Result "1-0"]
[Round "11"]
[TimeControl "180+2"]
[Date "2023.05.23"]
[WhiteClock "0:01:17"]
[BlackClock "0:00:00"]

1. e4 {[%clk 0:03:00]}  Nf6 {[%clk 0:02:57]} 2. e5 {[%clk 0:02:59]}  Nd5 {[%clk 0:02:57]} 3. c4 {[%clk 0:02:59]}  Nb6 {[%clk 0:02:55]} 4. d4 {[%clk 0:02:58]}  d6 {[%clk 0:02:55]} 5. exd6 {[%clk 0:02:58]}  exd6 {[%clk 0:02:54]} 6. Nc3 {[%clk 0:02:55]}  Be7 {[%clk 0:02:53]} 7. Be3 {[%clk 0:02:55]}  O-O {[%clk 0:02:51]} 8. Qf3 {[%clk 0:02:55]}  N8d7 {[%clk 0:02:45]} 9. O-O-O {[%clk 0:02:55]}  Nf6 {[%clk 0:02:39]} 10. h3 {[%clk 0:02:55]}  Bd7 {[%clk 0:02:32]} 11. g4 {[%clk 0:02:50]}  Bc6 {[%clk 0:02:22]} 12. d5 {[%clk 0:02:49]}  Bd7 {[%clk 0:02:22]} 13. g5 {[%clk 0:02:48]}  Ne8 {[%clk 0:02:19]} 14. h4 {[%clk 0:02:49]}  f5 {[%clk 0:02:12]} 15. Nh3 {[%clk 0:02:40]}  c6 {[%clk 0:01:59]} 16. Kb1 {[%clk 0:02:34]}  cxd5 {[%clk 0:01:34]} 17. cxd5 {[%clk 0:02:33]}  Rc8 {[%clk 0:01:33]} 18. Nf4 {[%clk 0:02:03]}  Nc4 {[%clk 0:01:29]} 19. Bd4 {[%clk 0:02:02]}  Nc7 {[%clk 0:01:16]} 20. Bxc4 {[%clk 0:02:01]}  b5 {[%clk 0:01:08]} 21. Bb3 {[%clk 0:01:56]}  a5 {[%clk 0:01:07]} 22. Ne6 {[%clk 0:01:55]}  Nxe6 {[%clk 0:01:04]} 23. dxe6 {[%clk 0:01:56]}  Bc6 {[%clk 0:01:02]} 24. Bd5 {[%clk 0:01:56]}  Be8 {[%clk 0:00:51]} 25. Ne2 {[%clk 0:01:42]}  b4 {[%clk 0:00:45]} 26. Rc1 {[%clk 0:01:42]}  a4 {[%clk 0:00:40]} 27. Rxc8 {[%clk 0:01:40]}  Qxc8 {[%clk 0:00:41]} 28. Rc1 {[%clk 0:01:41]}  Qa6 {[%clk 0:00:40]} 29. Nf4 {[%clk 0:01:39]}  Bb5 {[%clk 0:00:33]} 30. Bc6 {[%clk 0:01:38]}  Bc4 {[%clk 0:00:28]} 31. Nd5 {[%clk 0:01:38]}  Bxd5 {[%clk 0:00:17]} 32. Bxd5 {[%clk 0:01:36]}  a3 {[%clk 0:00:16]} 33. Bc4 {[%clk 0:01:22]}  Qc8 {[%clk 0:00:10]} 34. bxa3 {[%clk 0:01:20]}  bxa3 {[%clk 0:00:09]} 35. Qxa3 {[%clk 0:01:21]}  Qb8+ {[%clk 0:00:07]} 36. Bb3 {[%clk 0:01:19]}  Rc8 {[%clk 0:00:04]} 37. Rxc8+ {[%clk 0:01:18]}  Qxc8 {[%clk 0:00:04]} 38. Qb2 {[%clk 0:01:18]}  Bf8 {[%clk 0:00:00]} 39. e7+ {[%clk 0:01:17]} 1-0


[Site "https://www.chess.com"]

[Event "Titled Tuesday Blitz May 23 Early 2023"]
[White "Cramling Bellon, Anna"]
[Black "Vargas, Mauricio"]
[WhiteFideId "32009232"]
[BlackFideId "4404572"]
[WhiteElo "1976"]
[BlackElo "1986"]
[Result "1-0"]
[Round "11"]
[TimeControl "180+2"]
[Date "2023.05.23"]
[WhiteClock "0:00:10"]
[BlackClock "0:00:14"]

1. d4 {[%clk 0:02:55]}  d5 {[%clk 0:02:58]} 2. c4 {[%clk 0:02:53]}  c6 {[%clk 0:02:57]} 3. Nc3 {[%clk 0:02:52]}  e6 {[%clk 0:02:57]} 4. e3 {[%clk 0:02:52]}  Nf6 {[%clk 0:02:57]} 5. Nf3 {[%clk 0:02:51]}  Nbd7 {[%clk 0:02:56]} 6. Bd3 {[%clk 0:02:51]}  Bd6 {[%clk 0:02:54]} 7. O-O {[%clk 0:02:48]}  dxc4 {[%clk 0:02:54]} 8. Bxc4 {[%clk 0:02:49]}  b5 {[%clk 0:02:54]} 9. Bd3 {[%clk 0:02:49]}  O-O {[%clk 0:02:53]} 10. a3 {[%clk 0:02:45]}  Bb7 {[%clk 0:02:52]} 11. b4 {[%clk 0:02:33]}  a5 {[%clk 0:02:43]} 12. Rb1 {[%clk 0:02:32]}  axb4 {[%clk 0:02:41]} 13. axb4 {[%clk 0:02:32]}  Qe7 {[%clk 0:02:40]} 14. Qb3 {[%clk 0:02:06]}  Nb6 {[%clk 0:02:32]} 15. e4 {[%clk 0:01:57]}  e5 {[%clk 0:01:48]} 16. dxe5 {[%clk 0:01:39]}  Bxe5 {[%clk 0:01:48]} 17. Nxe5 {[%clk 0:01:38]}  Qxe5 {[%clk 0:01:47]} 18. Be3 {[%clk 0:01:37]}  Ng4 {[%clk 0:01:25]} 19. g3 {[%clk 0:01:08]}  Qh5 {[%clk 0:01:21]} 20. h4 {[%clk 0:01:00]}  Nxe3 {[%clk 0:01:18]} 21. fxe3 {[%clk 0:01:01]}  Qg4 {[%clk 0:01:12]} 22. Kg2 {[%clk 0:00:58]}  Rad8 {[%clk 0:00:55]} 23. Be2 {[%clk 0:00:56]}  Rd2 {[%clk 0:00:39]} 24. Rf2 {[%clk 0:00:43]}  Qg6 {[%clk 0:00:28]} 25. h5 {[%clk 0:00:26]}  Qg5 {[%clk 0:00:21]} 26. Rbf1 {[%clk 0:00:18]}  Qxe3 {[%clk 0:00:15]} 27. Rxf7 {[%clk 0:00:18]}  Rxe2+ {[%clk 0:00:15]} 28. Nxe2 {[%clk 0:00:10]}  Qxb3 {[%clk 0:00:14]} 29. Rxf8# {[%clk 0:00:10]} 1-0


[Site "https://www.chess.com"]